[Event "Titled Tuesday Blitz January 03 Late 2023"]
[White "Di Berardino, Diego Rafael"]
[Black "Bortnyk, Olexandr"]
[WhiteFideId "2105446"]
[BlackFideId "14120828"]
[WhiteElo "2479"]
[BlackElo "2605"]
[Result "0-1"]
[Round "04"]
[TimeControl "180+2"]
[Date "2023.01.03"]
[WhiteClock "0:00:08"]
[BlackClock "0:01:09"]

1. e4 {[%clk 0:03:00]}  Nf6 {[%clk 0:03:00]} 2. e5 {[%clk 0:03:00]}  Nd5 {[%clk 0:03:00]} 3. d4 {[%clk 0:03:00]}  d6 {[%clk 0:03:00]} 4. c4 {[%clk 0:03:01]}  Nb6 {[%clk 0:03:00]} 5. exd6 {[%clk 0:03:02]}  exd6 {[%clk 0:03:01]} 6. Nc3 {[%clk 0:03:00]}  Be7 {[%clk 0:03:01]} 7. Bd3 {[%clk 0:02:57]}  O-O {[%clk 0:03:01]} 8. Nge2 {[%clk 0:02:57]}  c6 {[%clk 0:02:59]} 9. O-O {[%clk 0:02:55]}  Na6 {[%clk 0:03:00]} 10. b3 {[%clk 0:02:54]}  d5 {[%clk 0:03:00]} 11. c5 {[%clk 0:02:53]}  Nd7 {[%clk 0:03:00]} 12. Ng3 {[%clk 0:02:47]}  g6 {[%clk 0:02:59]} 13. Bh6 {[%clk 0:02:12]}  Re8 {[%clk 0:02:57]} 14. Re1 {[%clk 0:02:10]}  Nc7 {[%clk 0:02:54]} 15. Qf3 {[%clk 0:01:38]}  Ne6 {[%clk 0:02:50]} 16. Nf5 {[%clk 0:01:27]}  Bf8 {[%clk 0:02:30]} 17. Bxf8 {[%clk 0:01:24]}  Rxf8 {[%clk 0:02:30]} 18. Qg3 {[%clk 0:00:59]}  Qf6 {[%clk 0:02:27]} 19. Ne2 {[%clk 0:00:51]}  Kh8 {[%clk 0:02:09]} 20. Nd6 {[%clk 0:00:45]}  Nxd4 {[%clk 0:02:07]} 21. Nxd4 {[%clk 0:00:45]}  Qxd4 {[%clk 0:02:08]} 22. Rad1 {[%clk 0:00:39]}  Qc3 {[%clk 0:01:45]} 23. Re7 {[%clk 0:00:29]}  Qf6 {[%clk 0:01:43]} 24. Qe3 {[%clk 0:00:12]}  d4 {[%clk 0:01:25]} 25. Qh6 {[%clk 0:00:08]}  Qxe7 {[%clk 0:01:09]} 0-1


[Site "https://www.chess.com"]

[Event "Titled Tuesday Blitz January 03 Late 2023"]
[White "Chigaev, Maksim"]
[Black "Aldokhin, Ivan"]
[WhiteFideId "4108116"]
[BlackFideId "24115720"]
[WhiteElo "2628"]
[BlackElo "2413"]
[Result "1-0"]
[Round "04"]
[TimeControl "180+2"]
[Date "2023.01.03"]
[WhiteClock "0:00:07"]
[BlackClock "0:00:01"]

1. e4 {[%clk 0:03:00]}  c5 {[%clk 0:02:59]} 2. Nf3 {[%clk 0:03:01]}  e6 {[%clk 0:03:00]} 3. g3 {[%clk 0:03:00]}  b6 {[%clk 0:02:56]} 4. Bg2 {[%clk 0:03:00]}  Bb7 {[%clk 0:02:56]} 5. Qe2 {[%clk 0:03:00]}  d6 {[%clk 0:02:55]} 6. O-O {[%clk 0:03:00]}  Nf6 {[%clk 0:02:55]} 7. Nc3 {[%clk 0:03:00]}  a6 {[%clk 0:02:52]} 8. d4 {[%clk 0:03:00]}  cxd4 {[%clk 0:02:52]} 9. Nxd4 {[%clk 0:03:01]}  Qc7 {[%clk 0:02:51]} 10. g4 {[%clk 0:02:52]}  h6 {[%clk 0:02:48]} 11. Kh1 {[%clk 0:02:50]}  Be7 {[%clk 0:02:48]} 12. f4 {[%clk 0:02:49]}  Nbd7 {[%clk 0:02:28]} 13. Bd2 {[%clk 0:02:35]}  b5 {[%clk 0:02:16]} 14. a3 {[%clk 0:02:25]}  g5 {[%clk 0:02:07]} 15. f5 {[%clk 0:02:18]}  e5 {[%clk 0:02:06]} 16. Nb3 {[%clk 0:02:19]}  h5 {[%clk 0:02:04]} 17. gxh5 {[%clk 0:01:23]}  Rxh5 {[%clk 0:02:01]} 18. Nd5 {[%clk 0:01:17]}  Bxd5 {[%clk 0:01:43]} 19. exd5 {[%clk 0:01:16]}  Qxc2 {[%clk 0:01:33]} 20. Na5 {[%clk 0:01:15]}  Nc5 {[%clk 0:01:11]} 21. Rac1 {[%clk 0:01:01]}  Qd3 {[%clk 0:01:05]} 22. Qxd3 {[%clk 0:00:38]}  Nxd3 {[%clk 0:01:04]} 23. Rc7 {[%clk 0:00:39]}  Bd8 {[%clk 0:00:58]} 24. Rc6 {[%clk 0:00:39]}  Bxa5 {[%clk 0:00:34]} 25. Bxa5 {[%clk 0:00:39]}  Ng4 {[%clk 0:00:27]} 26. h3 {[%clk 0:00:33]}  Nf4 {[%clk 0:00:24]} 27. Rxd6 {[%clk 0:00:29]}  Ke7 {[%clk 0:00:19]} 28. Bb4 {[%clk 0:00:25]}  a5 {[%clk 0:00:16]} 29. Ra6+ {[%clk 0:00:21]}  axb4 {[%clk 0:00:16]} 30. Rxa8 {[%clk 0:00:12]}  Ne3 {[%clk 0:00:16]} 31. Ra7+ {[%clk 0:00:11]}  Kd6 {[%clk 0:00:13]} 32. Ra6+ {[%clk 0:00:08]}  Kc5 {[%clk 0:00:12]} 33. Rc1+ {[%clk 0:00:05]}  Kd4 {[%clk 0:00:12]} 34. d6 {[%clk 0:00:05]}  Nexg2 {[%clk 0:00:04]} 35. d7 {[%clk 0:00:05]}  Rxh3+ {[%clk 0:00:04]} 36. Kg1 {[%clk 0:00:05]}  Rh8 {[%clk 0:00:04]} 37. Rc8 {[%clk 0:00:05]}  Ne2+ {[%clk 0:00:01]} 38. Kxg2 {[%clk 0:00:05]}  Nf4+ {[%clk 0:00:02]} 39. Kg1 {[%clk 0:00:06]}  Ne2+ {[%clk 0:00:02]} 40. Kf1 {[%clk 0:00:06]}  Ng3+ {[%clk 0:00:01]} 41. Kg2 {[%clk 0:00:07]} 1-0


[Site "https://www.chess.com"]

[Event "Titled Tuesday Blitz January 03 Late 2023"]
[White "Goroshkov, Maksym"]
[Black "Sjugirov, Sanan"]
[WhiteFideId "14142716"]
[BlackFideId "4189302"]
[WhiteElo "2287"]
[BlackElo "2712"]
[Result "1-0"]
[Round "04"]
[TimeControl "180+2"]
[Date "2023.01.03"]
[WhiteClock "0:00:13"]
[BlackClock "0:00:10"]

1. e4 {[%clk 0:03:00]}  c6 {[%clk 0:02:58]} 2. d4 {[%clk 0:02:59]}  d5 {[%clk 0:02:59]} 3. exd5 {[%clk 0:02:59]}  cxd5 {[%clk 0:02:59]} 4. c4 {[%clk 0:03:00]}  Nf6 {[%clk 0:02:59]} 5. Nc3 {[%clk 0:03:01]}  Nc6 {[%clk 0:02:59]} 6. Nf3 {[%clk 0:03:01]}  a6 {[%clk 0:02:59]} 7. cxd5 {[%clk 0:03:01]}  Nxd5 {[%clk 0:02:59]} 8. Bc4 {[%clk 0:03:02]}  Be6 {[%clk 0:02:59]} 9. Bb3 {[%clk 0:02:58]}  Nxc3 {[%clk 0:02:45]} 10. bxc3 {[%clk 0:02:59]}  Bxb3 {[%clk 0:02:45]} 11. Qxb3 {[%clk 0:02:57]}  Qd7 {[%clk 0:02:39]} 12. Ba3 {[%clk 0:02:54]}  b5 {[%clk 0:02:18]} 13. O-O {[%clk 0:02:51]}  Na5 {[%clk 0:01:43]} 14. Qc2 {[%clk 0:02:49]}  Qd5 {[%clk 0:01:21]} 15. Rfe1 {[%clk 0:02:43]}  Nc4 {[%clk 0:01:21]} 16. Bc5 {[%clk 0:02:35]}  e6 {[%clk 0:01:21]} 17. Bxf8 {[%clk 0:02:34]}  Kxf8 {[%clk 0:01:22]} 18. Ne5 {[%clk 0:02:27]}  Rc8 {[%clk 0:01:19]} 19. Nd3 {[%clk 0:02:27]}  g6 {[%clk 0:00:58]} 20. Nc5 {[%clk 0:02:21]}  Rc6 {[%clk 0:00:51]} 21. a4 {[%clk 0:02:06]}  Kg7 {[%clk 0:00:51]} 22. axb5 {[%clk 0:02:04]}  axb5 {[%clk 0:00:52]} 23. Ra7 {[%clk 0:02:03]}  e5 {[%clk 0:00:48]} 24. Rd7 {[%clk 0:01:49]}  Rd6 {[%clk 0:00:45]} 25. Rxd6 {[%clk 0:01:45]}  Qxd6 {[%clk 0:00:46]} 26. Ne4 {[%clk 0:01:39]}  Qd5 {[%clk 0:00:42]} 27. dxe5 {[%clk 0:01:38]}  Qxe5 {[%clk 0:00:42]} 28. Re2 {[%clk 0:01:23]}  Ra8 {[%clk 0:00:37]} 29. g3 {[%clk 0:00:56]}  Re8 {[%clk 0:00:34]} 30. Kf1 {[%clk 0:00:40]}  Qd5 {[%clk 0:00:31]} 31. Kg1 {[%clk 0:00:24]}  Ra8 {[%clk 0:00:18]} 32. Re1 {[%clk 0:00:21]}  Ne5 {[%clk 0:00:18]} 33. Qe2 {[%clk 0:00:18]}  Ra2 {[%clk 0:00:18]} 34. Qd1 {[%clk 0:00:15]}  Qxd1 {[%clk 0:00:06]} 35. Rxd1 {[%clk 0:00:16]}  Re2 {[%clk 0:00:06]} 36. Nd6 {[%clk 0:00:14]}  Rb2 {[%clk 0:00:06]} 37. Rd5 {[%clk 0:00:13]}  Nf3+ {[%clk 0:00:06]} 38. Kg2 {[%clk 0:00:13]}  Ne1+ {[%clk 0:00:06]} 39. Kf1 {[%clk 0:00:13]}  Nf3 {[%clk 0:00:07]} 40. Kg2 {[%clk 0:00:12]}  Ne1+ {[%clk 0:00:06]} 41. Kf1 {[%clk 0:00:13]}  Rb1 {[%clk 0:00:03]} 42. Rxb5 {[%clk 0:00:12]}  Rc1 {[%clk 0:00:03]} 43. c4 {[%clk 0:00:11]}  Nf3+ {[%clk 0:00:03]} 44. Kg2 {[%clk 0:00:11]}  Nd4 {[%clk 0:00:03]} 45. Rd5 {[%clk 0:00:10]}  Nc2 {[%clk 0:00:03]} 46. c5 {[%clk 0:00:09]}  Ne1+ {[%clk 0:00:04]} 47. Kh3 {[%clk 0:00:10]}  Rc2 {[%clk 0:00:03]} 48. Re5 {[%clk 0:00:09]}  Nf3 {[%clk 0:00:01]} 49. Re7 {[%clk 0:00:09]}  Ng1+ {[%clk 0:00:01]} 50. Kg2 {[%clk 0:00:09]}  Ne2 {[%clk 0:00:02]} 51. Rxf7+ {[%clk 0:00:09]}  Kg8 {[%clk 0:00:03]} 52. Rc7 {[%clk 0:00:10]}  Nd4 {[%clk 0:00:03]} 53. Ne4 {[%clk 0:00:09]}  Nf5 {[%clk 0:00:03]} 54. Nf6+ {[%clk 0:00:10]}  Kf8 {[%clk 0:00:04]} 55. Nxh7+ {[%clk 0:00:10]}  Ke8 {[%clk 0:00:05]} 56. Nf6+ {[%clk 0:00:11]}  Kd8 {[%clk 0:00:05]} 57. Rd7+ {[%clk 0:00:11]}  Kc8 {[%clk 0:00:06]} 58. Rd3 {[%clk 0:00:09]}  Rxc5 {[%clk 0:00:06]} 59. Ne4 {[%clk 0:00:10]}  Rc6 {[%clk 0:00:06]} 60. h4 {[%clk 0:00:09]}  Kc7 {[%clk 0:00:06]} 61. Rc3 {[%clk 0:00:10]}  Rxc3 {[%clk 0:00:06]} 62. Nxc3 {[%clk 0:00:11]}  Kd6 {[%clk 0:00:07]} 63. Kf3 {[%clk 0:00:11]}  Ke6 {[%clk 0:00:07]} 64. Kf4 {[%clk 0:00:11]}  Kf6 {[%clk 0:00:06]} 65. Ne4+ {[%clk 0:00:12]}  Kg7 {[%clk 0:00:07]} 66. Kg5 {[%clk 0:00:12]}  Nd4 {[%clk 0:00:07]} 67. Kf4 {[%clk 0:00:11]}  Ne6+ {[%clk 0:00:08]} 68. Ke5 {[%clk 0:00:12]}  Nd8 {[%clk 0:00:08]} 69. Ng5 {[%clk 0:00:12]}  Nc6+ {[%clk 0:00:08]} 70. Ke4 {[%clk 0:00:13]}  Kf6 {[%clk 0:00:08]} 71. Kf4 {[%clk 0:00:13]}  Ne7 {[%clk 0:00:08]} 72. Ne4+ {[%clk 0:00:13]}  Kg7 {[%clk 0:00:08]} 73. g4 {[%clk 0:00:13]}  Nd5+ {[%clk 0:00:08]} 74. Ke5 {[%clk 0:00:13]}  Nb6 {[%clk 0:00:08]} 75. f4 {[%clk 0:00:14]}  Nc4+ {[%clk 0:00:08]} 76. Kd4 {[%clk 0:00:14]}  Nb6 {[%clk 0:00:08]} 77. Ng3 {[%clk 0:00:13]}  Nd7 {[%clk 0:00:08]} 78. f5 {[%clk 0:00:11]}  Nf6 {[%clk 0:00:07]} 79. g5 {[%clk 0:00:11]}  Nh7 {[%clk 0:00:07]} 80. f6+ {[%clk 0:00:10]}  Nxf6 {[%clk 0:00:06]} 81. gxf6+ {[%clk 0:00:11]}  Kxf6 {[%clk 0:00:07]} 82. Ke4 {[%clk 0:00:11]}  g5 {[%clk 0:00:07]} 83. h5 {[%clk 0:00:12]}  g4 {[%clk 0:00:08]} 84. Kf4 {[%clk 0:00:12]}  Kg7 {[%clk 0:00:09]} 85. Kxg4 {[%clk 0:00:12]}  Kh6 {[%clk 0:00:10]} 86. Nf5+ {[%clk 0:00:13]} 1-0


[Site "https://www.chess.com"]

[Event "Titled Tuesday Blitz January 03 Late 2023"]
[White "Shimanov, Aleksandr"]
[Black "Ballester Llagaria, Luis Eduardo"]
[WhiteFideId "4198603"]
[BlackFideId "2297620"]
[WhiteElo "2581"]
[BlackElo "2298"]
[Result "1-0"]
[Round "04"]
[TimeControl "180+2"]
[Date "2023.01.03"]
[WhiteClock "0:01:59"]
[BlackClock "0:00:17"]

1. e4 {[%clk 0:03:00]}  c5 {[%clk 0:02:59]} 2. Nf3 {[%clk 0:03:00]}  e6 {[%clk 0:02:59]} 3. c3 {[%clk 0:03:00]}  d5 {[%clk 0:02:58]} 4. exd5 {[%clk 0:03:01]}  exd5 {[%clk 0:02:57]} 5. d4 {[%clk 0:03:00]}  Nf6 {[%clk 0:02:57]} 6. Bb5+ {[%clk 0:03:00]}  Nc6 {[%clk 0:02:58]} 7. O-O {[%clk 0:02:59]}  Be7 {[%clk 0:02:56]} 8. dxc5 {[%clk 0:02:59]}  Bxc5 {[%clk 0:02:54]} 9. Re1+ {[%clk 0:02:58]}  Be6 {[%clk 0:02:55]} 10. Be3 {[%clk 0:02:53]}  Bd6 {[%clk 0:02:31]} 11. Nbd2 {[%clk 0:02:50]}  O-O {[%clk 0:02:32]} 12. Nb3 {[%clk 0:02:46]}  Ne4 {[%clk 0:02:18]} 13. Bd3 {[%clk 0:02:38]}  Bg4 {[%clk 0:02:15]} 14. h3 {[%clk 0:02:33]}  Bh5 {[%clk 0:02:15]} 15. Be2 {[%clk 0:02:33]}  a6 {[%clk 0:02:05]} 16. Nfd4 {[%clk 0:02:22]}  Bxe2 {[%clk 0:02:04]} 17. Qxe2 {[%clk 0:02:23]}  Ne5 {[%clk 0:01:54]} 18. Rad1 {[%clk 0:02:22]}  Qf6 {[%clk 0:01:45]} 19. Nf3 {[%clk 0:02:14]}  Rad8 {[%clk 0:01:20]} 20. Rxd5 {[%clk 0:02:00]}  Nxf3+ {[%clk 0:00:52]} 21. Qxf3 {[%clk 0:02:01]}  Qxf3 {[%clk 0:00:31]} 22. gxf3 {[%clk 0:02:00]}  Nf6 {[%clk 0:00:31]} 23. Rd2 {[%clk 0:01:59]}  Nd5 {[%clk 0:00:25]} 24. Red1 {[%clk 0:01:57]}  Nxe3 {[%clk 0:00:22]} 25. fxe3 {[%clk 0:01:58]}  Be7 {[%clk 0:00:20]} 26. Rd7 {[%clk 0:01:58]}  Rxd7 {[%clk 0:00:17]} 27. Rxd7 {[%clk 0:01:59]} 1-0


[Site "https://www.chess.com"]

[Event "Titled Tuesday Blitz January 03 Late 2023"]
[White "Rosen, Eric"]
[Black "Kamsky, Gata"]
[WhiteFideId "2032562"]
[BlackFideId "2000024"]
[WhiteElo "2349"]
[BlackElo "2665"]
[Result "1/2-1/2"]
[Round "04"]
[TimeControl "180+2"]
[Date "2023.01.03"]
[WhiteClock "0:00:37"]
[BlackClock "0:01:20"]

1. d4 {[%clk 0:03:00]}  Nf6 {[%clk 0:02:59]} 2. Bf4 {[%clk 0:03:00]}  d5 {[%clk 0:02:55]} 3. e3 {[%clk 0:03:00]}  e6 {[%clk 0:02:55]} 4. Nf3 {[%clk 0:03:00]}  Bd6 {[%clk 0:02:56]} 5. Ne5 {[%clk 0:03:01]}  O-O {[%clk 0:02:53]} 6. Nd2 {[%clk 0:03:00]}  c5 {[%clk 0:02:54]} 7. c3 {[%clk 0:03:00]}  Qc7 {[%clk 0:02:53]} 8. Bd3 {[%clk 0:03:00]}  Nbd7 {[%clk 0:02:52]} 9. Ndf3 {[%clk 0:02:41]}  cxd4 {[%clk 0:02:40]} 10. cxd4 {[%clk 0:02:27]}  Nxe5 {[%clk 0:02:34]} 11. Bxe5 {[%clk 0:02:21]}  Qa5+ {[%clk 0:02:32]} 12. Ke2 {[%clk 0:02:14]}  Bxe5 {[%clk 0:02:29]} 13. Nxe5 {[%clk 0:02:14]}  Nd7 {[%clk 0:02:21]} 14. Nxd7 {[%clk 0:02:08]}  Bxd7 {[%clk 0:02:20]} 15. Qd2 {[%clk 0:02:09]}  Qb6 {[%clk 0:02:19]} 16. Rac1 {[%clk 0:02:02]}  Rfc8 {[%clk 0:02:15]} 17. Rxc8+ {[%clk 0:02:01]}  Rxc8 {[%clk 0:02:14]} 18. Rc1 {[%clk 0:02:00]}  Rc7 {[%clk 0:01:57]} 19. Rc3 {[%clk 0:01:54]}  h6 {[%clk 0:01:54]} 20. Qc2 {[%clk 0:01:46]}  Rxc3 {[%clk 0:01:53]} 21. Qxc3 {[%clk 0:01:47]}  a5 {[%clk 0:01:38]} 22. b3 {[%clk 0:01:37]}  Kf8 {[%clk 0:01:36]} 23. f4 {[%clk 0:01:26]}  Ke7 {[%clk 0:01:35]} 24. Kd2 {[%clk 0:01:23]}  Kd8 {[%clk 0:01:31]} 25. Qc5 {[%clk 0:01:13]}  Qb4+ {[%clk 0:01:29]} 26. Qxb4 {[%clk 0:00:57]}  axb4 {[%clk 0:01:28]} 27. Kc2 {[%clk 0:00:58]}  f6 {[%clk 0:01:28]} 28. Kb2 {[%clk 0:00:56]}  Ke7 {[%clk 0:01:28]} 29. a3 {[%clk 0:00:56]}  bxa3+ {[%clk 0:01:27]} 30. Kxa3 {[%clk 0:00:57]}  Kd6 {[%clk 0:01:22]} 31. Kb4 {[%clk 0:00:57]}  b6 {[%clk 0:01:22]} 32. Bb5 {[%clk 0:00:49]}  Bc8 {[%clk 0:01:21]} 33. Be8 {[%clk 0:00:43]}  Ba6 {[%clk 0:01:20]} 34. Bb5 {[%clk 0:00:43]}  Bc8 {[%clk 0:01:20]} 35. Be8 {[%clk 0:00:37]}  Ba6 {[%clk 0:01:20]} 36. Bb5 {[%clk 0:00:37]}  Bc8 {[%clk 0:01:20]} 1/2-1/2


[Site "https://www.chess.com"]

[Event "Titled Tuesday Blitz January 03 Late 2023"]
[White "Boros, Denes"]
[Black "Egorov, Evgeny"]
[WhiteFideId "722340"]
[BlackFideId "13700421"]
[WhiteElo "2406"]
[BlackElo "2294"]
[Result "1-0"]
[Round "04"]
[TimeControl "180+2"]
[Date "2023.01.03"]
[WhiteClock "0:00:51"]
[BlackClock "0:00:15"]

1. d4 {[%clk 0:03:00]}  d5 {[%clk 0:02:58]} 2. Nc3 {[%clk 0:03:01]}  Bg4 {[%clk 0:02:57]} 3. f3 {[%clk 0:02:57]}  Bh5 {[%clk 0:02:56]} 4. Nh3 {[%clk 0:02:54]}  e5 {[%clk 0:02:51]} 5. dxe5 {[%clk 0:02:54]}  d4 {[%clk 0:02:51]} 6. Nf4 {[%clk 0:02:44]}  Bg6 {[%clk 0:02:43]} 7. Nxg6 {[%clk 0:02:44]}  hxg6 {[%clk 0:02:42]} 8. Ne4 {[%clk 0:02:44]}  Nc6 {[%clk 0:02:29]} 9. Qd3 {[%clk 0:02:26]}  Qd5 {[%clk 0:02:19]} 10. Bf4 {[%clk 0:02:16]}  O-O-O {[%clk 0:02:08]} 11. Qb3 {[%clk 0:02:11]}  Qa5+ {[%clk 0:01:59]} 12. Kf2 {[%clk 0:01:56]}  Nxe5 {[%clk 0:01:44]} 13. g3 {[%clk 0:01:51]}  Nf6 {[%clk 0:01:41]} 14. Ng5 {[%clk 0:01:34]}  Nh5 {[%clk 0:00:54]} 15. Bxe5 {[%clk 0:01:28]}  Qxe5 {[%clk 0:00:51]} 16. Nxf7 {[%clk 0:01:28]}  Qe3+ {[%clk 0:00:51]} 17. Qxe3 {[%clk 0:01:24]}  dxe3+ {[%clk 0:00:51]} 18. Kg2 {[%clk 0:01:20]}  Be7 {[%clk 0:00:30]} 19. Nxh8 {[%clk 0:01:18]}  Rxh8 {[%clk 0:00:31]} 20. f4 {[%clk 0:01:10]}  Rd8 {[%clk 0:00:29]} 21. Kf3 {[%clk 0:01:10]}  Rd2 {[%clk 0:00:28]} 22. Rc1 {[%clk 0:01:09]}  Bf6 {[%clk 0:00:24]} 23. Kxe3 {[%clk 0:01:05]}  Rd6 {[%clk 0:00:21]} 24. c3 {[%clk 0:01:03]}  Rb6 {[%clk 0:00:18]} 25. Rc2 {[%clk 0:01:02]}  Kd8 {[%clk 0:00:16]} 26. Bh3 {[%clk 0:01:00]}  Ke7 {[%clk 0:00:16]} 27. Rd1 {[%clk 0:00:59]}  g5 {[%clk 0:00:16]} 28. Rd7+ {[%clk 0:00:57]}  Kf8 {[%clk 0:00:16]} 29. Rxc7 {[%clk 0:00:53]}  gxf4+ {[%clk 0:00:15]} 30. gxf4 {[%clk 0:00:54]}  Nxf4 {[%clk 0:00:15]} 31. Kxf4 {[%clk 0:00:51]} 1-0


[Site "https://www.chess.com"]

[Event "Titled Tuesday Blitz January 03 Late 2023"]
[White "Mahdavi, Reza"]
[Black "Yang, Kevin"]
[WhiteFideId "12595926"]
[BlackFideId "30908485"]
[WhiteElo "2339"]
[BlackElo "2096"]
[Result "1/2-1/2"]
[Round "04"]
[TimeControl "180+2"]
[Date "2023.01.03"]
[WhiteClock "0:01:08"]
[BlackClock "0:00:26"]

1. e4 {[%clk 0:03:00]}  e6 {[%clk 0:02:57]} 2. d4 {[%clk 0:03:00]}  a6 {[%clk 0:02:56]} 3. Nc3 {[%clk 0:03:01]}  d5 {[%clk 0:02:55]} 4. Bd3 {[%clk 0:02:48]}  dxe4 {[%clk 0:02:47]} 5. Nxe4 {[%clk 0:02:48]}  Nd7 {[%clk 0:02:43]} 6. Nf3 {[%clk 0:02:47]}  Ngf6 {[%clk 0:02:34]} 7. O-O {[%clk 0:02:39]}  Nxe4 {[%clk 0:02:33]} 8. Bxe4 {[%clk 0:02:36]}  Nf6 {[%clk 0:02:34]} 9. Qe2 {[%clk 0:02:32]}  Nxe4 {[%clk 0:02:30]} 10. Qxe4 {[%clk 0:02:33]}  h6 {[%clk 0:02:18]} 11. Re1 {[%clk 0:02:29]}  Bd6 {[%clk 0:02:16]} 12. Bf4 {[%clk 0:02:25]}  O-O {[%clk 0:02:09]} 13. Rad1 {[%clk 0:02:24]}  Bd7 {[%clk 0:01:51]} 14. Bxd6 {[%clk 0:02:21]}  cxd6 {[%clk 0:01:50]} 15. Qxb7 {[%clk 0:02:20]}  Rb8 {[%clk 0:01:40]} 16. Qxa6 {[%clk 0:02:19]}  Rxb2 {[%clk 0:01:21]} 17. Qxd6 {[%clk 0:02:18]}  Rxa2 {[%clk 0:01:19]} 18. Rc1 {[%clk 0:02:12]}  Ba4 {[%clk 0:01:09]} 19. Qxd8 {[%clk 0:02:10]}  Rxd8 {[%clk 0:01:10]} 20. c4 {[%clk 0:02:10]}  Bc6 {[%clk 0:01:03]} 21. Ne5 {[%clk 0:02:04]}  Be8 {[%clk 0:01:03]} 22. d5 {[%clk 0:01:58]}  exd5 {[%clk 0:00:57]} 23. cxd5 {[%clk 0:01:55]}  Rxd5 {[%clk 0:00:57]} 24. Rc8 {[%clk 0:01:54]}  Rxe5 {[%clk 0:00:56]} 25. Rxe8+ {[%clk 0:01:54]}  Rxe8 {[%clk 0:00:57]} 26. Rxe8+ {[%clk 0:01:54]}  Kh7 {[%clk 0:00:57]} 27. g3 {[%clk 0:01:55]}  Kg6 {[%clk 0:00:55]} 28. Kg2 {[%clk 0:01:55]}  Kh7 {[%clk 0:00:55]} 29. Re7 {[%clk 0:01:55]}  Kg6 {[%clk 0:00:54]} 30. Rb7 {[%clk 0:01:56]}  f6 {[%clk 0:00:54]} 31. h3 {[%clk 0:01:55]}  h5 {[%clk 0:00:54]} 32. Rb3 {[%clk 0:01:55]}  Kh6 {[%clk 0:00:54]} 33. Kf3 {[%clk 0:01:55]}  Kg6 {[%clk 0:00:54]} 34. h4 {[%clk 0:01:52]}  Kh6 {[%clk 0:00:54]} 35. Ke3 {[%clk 0:01:52]}  Kg6 {[%clk 0:00:55]} 36. f3 {[%clk 0:01:52]}  Rg2 {[%clk 0:00:54]} 37. Kf4 {[%clk 0:01:52]}  Rc2 {[%clk 0:00:54]} 38. Rb4 {[%clk 0:01:52]}  Kh6 {[%clk 0:00:54]} 39. g4 {[%clk 0:01:53]}  hxg4 {[%clk 0:00:53]} 40. fxg4 {[%clk 0:01:54]}  Rc5 {[%clk 0:00:49]} 41. Kf3 {[%clk 0:01:49]}  Rc3+ {[%clk 0:00:48]} 42. Ke4 {[%clk 0:01:49]}  Rh3 {[%clk 0:00:46]} 43. h5 {[%clk 0:01:44]}  Rg3 {[%clk 0:00:40]} 44. Kf4 {[%clk 0:01:43]}  Rg1 {[%clk 0:00:40]} 45. Rb8 {[%clk 0:01:43]}  Rf1+ {[%clk 0:00:39]} 46. Kg3 {[%clk 0:01:42]}  g6 {[%clk 0:00:33]} 47. hxg6 {[%clk 0:01:34]}  Kxg6 {[%clk 0:00:34]} 48. Rg8+ {[%clk 0:01:32]}  Kf7 {[%clk 0:00:34]} 49. Ra8 {[%clk 0:01:33]}  Kg6 {[%clk 0:00:34]} 50. Kh4 {[%clk 0:01:32]}  Rh1+ {[%clk 0:00:33]} 51. Kg3 {[%clk 0:01:33]}  Rb1 {[%clk 0:00:34]} 52. Ra4 {[%clk 0:01:32]}  Rc1 {[%clk 0:00:33]} 53. Kf4 {[%clk 0:01:32]}  Rf1+ {[%clk 0:00:33]} 54. Kg3 {[%clk 0:01:32]}  Rg1+ {[%clk 0:00:34]} 55. Kf2 {[%clk 0:01:32]}  Rc1 {[%clk 0:00:33]} 56. Rb4 {[%clk 0:01:32]}  Rc3 {[%clk 0:00:33]} 57. Rb5 {[%clk 0:01:30]}  Rd3 {[%clk 0:00:33]} 58. Ke2 {[%clk 0:01:30]}  Rg3 {[%clk 0:00:32]} 59. Rb4 {[%clk 0:01:28]}  Kg5 {[%clk 0:00:32]} 60. Kf2 {[%clk 0:01:23]}  Rxg4 {[%clk 0:00:32]} 61. Rb8 {[%clk 0:01:14]}  f5 {[%clk 0:00:32]} 62. Rg8+ {[%clk 0:01:09]}  Kf4 {[%clk 0:00:32]} 63. Rxg4+ {[%clk 0:01:07]}  Kxg4 {[%clk 0:00:28]} 64. Kg2 {[%clk 0:01:07]}  f4 {[%clk 0:00:28]} 65. Kf2 {[%clk 0:01:05]}  f3 {[%clk 0:00:28]} 66. Kf1 {[%clk 0:01:06]}  Kf5 {[%clk 0:00:27]} 67. Kf2 {[%clk 0:01:06]}  Ke4 {[%clk 0:00:27]} 68. Kf1 {[%clk 0:01:07]}  Ke3 {[%clk 0:00:27]} 69. Ke1 {[%clk 0:01:08]}  Kf4 {[%clk 0:00:28]} 70. Kf2 {[%clk 0:01:08]}  Kg4 {[%clk 0:00:26]} 1/2-1/2


[Site "https://www.chess.com"]